Workbook

Sheet 附件2
A1: 附件2
A2: 蓬江区2024政府性基金预算调整情况表
J3: 单位：万元
A4: 收 入 | F4: 支 出
A5: 项目 | B5: 年初预算数 | C5: 第一次调整后预算数 | D5: 调整额 | E5: 第二次调整后预算数 | F5: 项目 | G5: 年初预算数 | H5: 第一次调整后预算数 | I5: 调整额 | J5: 第二次调整后预算数 | L5: 支出调整额说明：
A6: 一、基金预算收入 | B6: 402,655 | C6: 402,655 | D6: =E6-C6 -> -238,997 | E6: 163,658 | F6: 一、基金预算支出 | G6: 267,943 | H6: 347,943 | I6: =J6-H6 -> 24,662 | J6: =372191+414 -> 372,605 | L6: 省下达市本级专项债0.5亿+收回市区专项债额度分配市本级0.2亿+-(第一批压减6.5927亿-补助下级压减1.2595亿)-（第二批压减0.7115亿-补助下级压减0.3528亿）=-4.9919亿元-0.0279（差额调平）=-5.0198亿元
A7: 二、上年结转收入 | B7: 8,133 | C7: 8,133 | D7: 4,217 | E7: 12,350 | F7: 二、转移性支出 | I7: 0
A8: 三、转移性收入 | B8: =SUM(B9:B10) -> 8,655 | C8: =SUM(C9:C10) -> 8,655 | D8: 11,604 | E8: =SUM(E9:E10) -> 20,259 | F8: （一）上解上级支出
A9: （一）上级补助收入 | B9: 8,655 | C9: 8,655 | D9: 11,604 | E9: 20,259 | F9: （二）补助下级支出 | L9: -市补助下级压减第一批1.2595亿-市补助下级压减第二批0.3528亿（含人才岛第二批压减0.3亿元、民生微实事0.05亿、农科创项目28万）=-1.6123亿+0.6123（差额调平）=-1亿
A10: （二）下级上解收入 | D10: 0 | F10: 三、调出资金 | G10: 148,000 | H10: 148,000 | I10: -135,000 | J10: 13,000 | L10: -第一批压减7.0015亿-第二批压减2.1261亿（已含中创新航第二批压减1.5亿）=-9.1276亿。
A11: 四、债券转贷收入 | B11: =SUM(B12:B13) -> 31,373 | C11: =SUM(C12:C13) -> 113,673 | D11: 91,405 | E11: =SUM(E12:E13) -> 205,078 | F11: 四、债券转贷支出 | I11: 0
A12: （一）再融资债券收入 | B12: 31,373 | C12: 33,673 | D12: 0 | E12: 33,673 | F12: （一）再融资债券支出
A13: （二）专项债券收入 | C13: 80,000 | D13: 91,405 | E13: 171,405 | F13: （二）专项债券支出
A14: 五、调入资金 | E14: 19,133 | F14: 五、债务还本支出 | G14: 34,873 | H14: 34,873 | I14: 0 | J14: 34,873
F15: 六、结转下年支出 | H15: 2,300 | I15: -2,300 | J15: 0 | L15: 彩票公益金收入超收0.121亿
A16: 收入总计 | B16: =SUM(B6,B7,B8,B11) -> 450,816 | C16: =SUM(C6,C7,C8,C11) -> 533,116 | D16: =E16-C16 -> -112,638 | E16: =SUM(E6,E7,E8,E11,E14) -> 420,478 | F16: 支出总计 | G16: =SUM(G6,G7,G10,G11,G14,G15) -> 450,816 | H16: 533,116 | I16: -112,638 | J16: 420,478
